fUSD/lending_fUSD_20251224
["ID","MTS","AMOUNT","RATE_DAILY","PERIOD"]
[399668507,1766596241685,-500.0,0.00016438,2]
[399668508,1766596241696,-500.0,0.00016438,2]
[399668509,1766596241707,-500.0,0.00016438,2]
[399668510,1766596241718,-500.0,0.00016438,2]
[399668511,1766596241730,-500.0,0.00016438,2]
[399668512,1766596241745,-500.0,0.00016438,2]
[399668513,1766596241756,-500.0,0.00016438,2]
[399668514,1766596241770,-500.0,0.00016438,2]
[399668515,1766596241781,-500.0,0.00016438,2]
[399668516,1766596241791,-500.0,0.00016438,2]
[399668517,1766596241802,-500.0,0.00016438,2]
[399668518,1766596241813,-500.0,0.00016438,2]
[399668519,1766596241823,-500.0,0.00016438,2]
[399668520,1766596241834,-500.0,0.00016438,2]
[399668521,1766596241844,-500.0,0.00016438,2]
[399668522,1766596241855,-500.0,0.00016438,2]
[399668523,1766596241866,-500.0,0.00016438,2]
[399668524,1766596241877,-403.66079582,0.00016438,2]
[399668525,1766596241887,-500.0,0.00016438,2]
[399668526,1766596241898,-150.0,0.00016438,2]
[399668527,1766596241909,-164.5,0.0001644,2]
[399668528,1766596241919,-164.5,0.0001644,2]
[399668529,1766596241930,-150.0,0.00016465,2]
[399668530,1766596241941,-150.0,0.00016465,2]
[399668531,1766596241952,-200.0,0.00016493,2]
[399668532,1766596241962,-200.0,0.00016493,2]
[399668533,1766596241973,-433.0,0.00016543,2]
[399668534,1766596241983,-30456.02247588,0.00016608,2]
[399668535,1766596241994,-13470.6,0.0001663,2]
[399668536,1766596242005,-150.0,0.0001663,2]
[399668537,1766596242015,-54607.5903278,0.00016631,2]
[399668538,1766596242025,-1958.8692572,0.00016633,2]
[399668539,1766596242036,-5651.16950398,0.00016639,2]
[399668540,1766596242046,-16165.84612425,0.00016648,2]
[399668541,1766596242057,-2000.0,0.00016648,2]
[399668542,1766596242068,-1514.36,0.00016701,2]
[399668543,1766596242079,-164.83,0.00016712,2]
[399668544,1766596242089,-224.19950909,0.00016719,2]
[399668545,1766596242099,-1000.0,0.0001672,2]
[399668546,1766596242110,-300.0,0.00016721,2]
[399668547,1766596242120,-150.0,0.00016724,2]
[399668548,1766596242131,-150.0,0.00016725,2]
[399668549,1766596242142,-1000.0,0.00016727,2]
[399668550,1766596242152,-300.0,0.00016742,2]
[399668551,1766596242163,-150.0,0.00016744,2]
[399668552,1766596242174,-300.0,0.00016747,2]
[399668553,1766596242185,-1000.0,0.00016747,2]
[399668554,1766596242195,-300.0,0.00016759,2]
[399668555,1766596242206,-150.0,0.00016767,2]
[399668556,1766596242216,-1000.0,0.0001679,2]
[399668557,1766596242228,-150.0,0.00016791,2]
[399668558,1766596242238,-300.0,0.00016793,2]
[399668559,1766596242248,-1000.0,0.00016793,2]
[399668560,1766596242259,-300.0,0.00016801,2]
[399668561,1766596242269,-490.90983148,0.00016807,2]
[399668562,1766596242280,-300.0,0.00016816,2]
[399668563,1766596242292,-1000.0,0.00016816,2]
[399668564,1766596242303,-2000.0,0.00016816,2]
[399668565,1766596242313,-5984.0622335,0.00016823,2]
[399668567,1766596242324,-300.0,0.00016827,2]
[399668568,1766596242335,-1113.30940197,0.0001683,2]
[399668569,1766596242345,-300.0,0.00016831,2]
[399668570,1766596242355,-300.0,0.00016836,2]
[399668571,1766596242365,-1000.0,0.00016837,2]
[399668572,1766596242376,-300.0,0.0001684,2]
[399668573,1766596242388,-1000.0,0.00016846,2]
[399668574,1766596242399,-300.0,0.0001685,2]
[399668575,1766596242409,-198.45467278,0.00016851,2]
[399668576,1766596242420,-6988.0698015,0.00016864,2]
[399668577,1766596242432,-200.0,0.00016864,2]
[399668578,1766596242443,-1000.0,0.00016865,2]
[399668579,1766596242453,-150.0,0.00016866,2]
[399668580,1766596242465,-150.0,0.00016866,2]
[399668581,1766596242476,-150.0,0.00016866,2]
[399668583,1766596242486,-150.0,0.00016866,2]
[399668585,1766596242496,-150.0,0.00016866,2]
[399668587,1766596242507,-150.0,0.00016866,2]
[399668588,1766596242517,-150.0,0.00016866,2]
[399668589,1766596242528,-841.0,0.00016881,2]
[399668591,1766596242539,-300.0,0.00016884,2]
[399668593,1766596242549,-300.0,0.00016887,2]
[399668595,1766596242559,-300.0,0.00016896,2]
[399668597,1766596242569,-300.0,0.00016896,2]
[399668599,1766596242580,-500.55152277,0.00016899,2]
[399668601,1766596242590,-500.0,0.00016899,2]
[399668603,1766596242601,-500.0,0.00016899,2]
[399668605,1766596242611,-500.0,0.00016899,2]
[399668606,1766596242620,-469.51043734,0.00016899,2]
[399668607,1766596242630,-500.0,0.00016899,2]
[399668608,1766596242640,-500.0,0.00016899,2]
[399668609,1766596242651,-500.0,0.00016899,2]
[399668610,1766596242661,-500.0,0.00016899,2]
[399668611,1766596242672,-500.0,0.00016899,2]
[399668612,1766596242682,-500.0,0.00016899,2]
[399668613,1766596242692,-500.0,0.00016899,2]
[399668614,1766596242703,-500.0,0.00016899,2]
[399668615,1766596242713,-500.0,0.00016899,2]
[399668616,1766596242723,-398.40831123,0.00016899,2]
[399668617,1766596242733,-500.0,0.00016899,2]
[399668618,1766596242744,-1000.0,0.00016899,2]
[399668619,1766596242754,-10000.0,0.000169,2]
[399668620,1766596242764,-182.84305788,0.000169,2]
[399668621,1766596242774,-161.28333362,0.000169,2]
[399668622,1766596242784,-685.66043144,0.000169,2]
[399668623,1766596242794,-456.58012976,0.000169,2]
[399668624,1766596242804,-276.11513699,0.000169,2]
[399668625,1766596242815,-254.13060141,0.00016905,2]
[399668626,1766596242825,-1000.0,0.00016906,2]
[399668627,1766596242835,-300.0,0.00016922,2]
[399668628,1766596242844,-308.916,0.00016924,2]
[399668629,1766596242854,-300.0,0.00016931,2]
[399668630,1766596242865,-1000.0,0.00016935,2]
[399668631,1766596242875,-1000.0,0.00016938,2]
[399668632,1766596242885,-1000.0,0.0001694,2]
[399668633,1766596242896,-300.0,0.00016941,2]
[399668634,1766596242906,-300.0,0.00016945,2]
[399668635,1766596242916,-1000.0,0.00016948,2]
[399668636,1766596242926,-150.0,0.00016951,2]
[399668637,1766596242936,-150.0,0.00016958,2]
[399668638,1766596242949,-1000.0,0.0001697,2]
[399668639,1766596242959,-1514.36,0.00016975,2]
[399668640,1766596242969,-226.0,0.00016976,2]
[399668641,1766596242980,-1000.0,0.00016983,2]
[399668642,1766596242990,-1000.0,0.00016983,2]
[399668643,1766596243000,-225.18697532,0.00016983,2]
[399668644,1766596243010,-533.88981491,0.00016983,2]
[399668645,1766596243020,-150.0,0.00016988,2]
[399668646,1766596243031,-177.95989573,0.0001699,2]
[399668647,1766596243042,-151.0,0.00016997,2]
[399668648,1766596243052,-151.0,0.00016997,2]
[399668649,1766596243063,-500.0,0.00016998,2]
[399668650,1766596243073,-79675.3227902,0.00016999,2]
[399668651,1766596243084,-500.0,0.00016999,2]
[399668652,1766596243095,-500.0,0.00016999,2]
[399668653,1766596243105,-500.0,0.00016999,2]
[399668654,1766596243116,-570.5676631,0.00016999,2]
[399668655,1766596243126,-500.0,0.00016999,2]
[399668656,1766596243137,-500.0,0.00016999,2]
[399668657,1766596243147,-500.0,0.00016999,2]
[399668658,1766596243157,-500.0,0.00016999,2]
[399668659,1766596243170,-500.0,0.00016999,2]
[399668660,1766596243180,-500.0,0.00016999,2]
[399668661,1766596243191,-500.0,0.00016999,2]
[399668662,1766596243201,-516.01929042,0.00016999,2]
[399668663,1766596243211,-500.0,0.00016999,2]
[399668664,1766596243222,-486.58926638,0.00016999,2]
[399668665,1766596243233,-500.0,0.00016999,2]
[399668666,1766596243244,-500.0,0.00016999,2]
[399668667,1766596243254,-500.0,0.00016999,2]
[399668668,1766596243264,-500.0,0.00016999,2]
[399668669,1766596243275,-500.0,0.00016999,2]
[399668670,1766596243285,-500.0,0.00016999,2]
[399668671,1766596243295,-500.0,0.00016999,2]
[399668672,1766596243306,-521.52385313,0.00016999,2]
[399668673,1766596243316,-500.0,0.00016999,2]
[399668674,1766596243326,-500.0,0.00016999,2]
[399668675,1766596243336,-500.0,0.00016999,2]
[399668676,1766596243347,-500.0,0.00016999,2]
[399668677,1766596243356,-500.0,0.00016999,2]
[399668678,1766596243366,-528.10208627,0.00016999,2]
[399668679,1766596243377,-398.68934422,0.00016999,2]
[399668680,1766596243389,-500.0,0.00016999,2]
[399668681,1766596243399,-500.0,0.00016999,2]
[399668682,1766596243409,-500.0,0.00016999,2]
[399668683,1766596243420,-500.0,0.00016999,2]
[399668684,1766596243431,-500.0,0.00016999,2]
[399668685,1766596243441,-500.0,0.00016999,2]
[399668686,1766596243451,-500.0,0.00016999,2]
[399668687,1766596243464,-500.0,0.00016999,2]
[399668688,1766596243473,-500.0,0.00016999,2]
[399668689,1766596243483,-500.0,0.00016999,2]
[399668690,1766596243493,-500.0,0.00016999,2]
[399668691,1766596243503,-532.74252407,0.00016999,2]
[399668692,1766596243513,-960827.91152422,0.00017,2]
[399668693,1766596243978,-12746.0,0.00017,2]
[399668694,1766596243994,-1586.66,0.00017,2]
[399668695,1766596244022,-907.14,0.00017,2]
[399668696,1766596244033,-12493.37199353,0.00017,2]
[399668697,1766596244045,-443.30610588,0.00017,2]
[399668698,1766596244057,-340.00534089,0.00017,2]
[399668699,1766596244603,-151.0,0.00015134,2]
[399668700,1766596244613,-151.0,0.00015134,2]
[399668701,1766596244624,-8.71335497,0.00017,2]
[399668702,1766596244675,-2384.78114555,0.00017,2]
[399668703,1766596244687,-16512.62240787,0.00017,2]
[399668704,1766596244704,-10045.45113752,0.00017,2]
[399668705,1766596244723,-6310.9068042,0.00017,2]
[399668720,1766596246286,-1.7e-07,0.00017,2]
[399668721,1766596246302,-79111.40015416,0.00017,2]
[399668722,1766596246314,-1731.41031661,0.00017,2]
[399668723,1766596246327,-1426.22576443,0.00017,2]
[399668724,1766596246338,-437.145,0.00017,2]
[399668725,1766596247084,-368.0,0.0001465,2]
[399668726,1766596247096,-8364.72556,0.00017,2]
[399668727,1766596247681,-34.7373805,0.00017,2]
[399668728,1766596247693,-134839.98575055,0.00017,2]
[399668729,1766596248659,-104001.97488092,0.00017,2]
[399668730,1766596248760,-542.82391399,0.00017,2]
[399668731,1766596261256,1448.3,0.00021918,30]
[399668732,1766596287838,7977.163248,0.00014113,2]
[399668733,1766596287866,10000.01,0.00014113,2]
[399668734,1766596287892,10000.01,0.00014113,2]
[399668735,1766596287919,10000.01,0.00014113,2]
[399668736,1766596287944,10000.01,0.00014113,2]
[399668737,1766596287971,10000.01,0.00014113,2]
[399668738,1766596287997,10000.01,0.00014113,2]
[399668739,1766596288024,10000.01,0.00014113,2]
[399668740,1766596288050,10000.01,0.00014113,2]
[399668741,1766596288078,10000.01,0.00014113,2]
[399668742,1766596288110,8638.52333611,0.00014113,2]
[399668743,1766596288146,893384.22341589,0.00014113,2]
[399668744,1766596302722,1000.0,0.00014114,2]
[399668745,1766596315165,9000.01,0.00014114,2]
[399668746,1766596315189,10000.01,0.00014114,2]
[399668747,1766596315217,40649.2399,0.00014114,2]
[399668748,1766596321355,2500.0,0.00014114,2]
[399668749,1766596390700,6691.5941,0.00014114,2]
[399668750,1766596436692,559274.94258411,0.00014113,2]
[399668751,1766596436732,440725.05741589,0.00014113,2]
[399668752,1766596451904,1000.0,0.00014114,2]
[399668753,1766596470481,2500.0,0.00014114,2]
[399668754,1766596523658,167.7,0.00011245,2]
[399668755,1766596523873,167.7,0.00012651,2]
[399668756,1766596524089,167.7,0.00014057,2]
[399668757,1766596800098,591.54,0.00014057,2]
[399668758,1766596947564,549.36115014,0.00014112,2]
[399668761,1766597230366,205.0,9.8e-05,2]
[399668762,1766597257673,366.24076676,0.00014111,2]
[399668763,1766597263095,366.24076675,0.00014145,2]
[399668764,1766597266376,2509.09961018,0.00013,2]
[399668765,1766597268961,366.24076675,0.00014179,2]
[399668766,1766597271091,1368.12742309,0.00012,2]
[399668767,1766597290338,1000.0,0.000135,2]
[399668768,1766597297490,1925.97390625,0.0001,2]
[399668769,1766597299797,390.37563915,7.888e-05,2]
[399668770,1766597301516,336.15530719,0.00014143,2]
[399668771,1766597308890,25.65466374,0.0001,2]
[399668772,1766597308917,2701.88619074,0.0001,2]
[399668773,1766597311646,267.47871705,0.000107,2]
[399668774,1766597318548,7030.64509221,0.0001,2]
[399668775,1766597318573,5223.59752023,0.0001,2]
[399668782,1766597431546,-326.03172292,0.00014211,2]
[399668785,1766597431558,-873.96827708,0.00014211,2]
[399668786,1766597431568,-267.0,0.00014211,2]
[399668787,1766597431578,-600.0,0.00014211,2]
[399668788,1766597431588,-250.0,0.00014211,2]
[399668789,1766597431597,-195.0,0.00014211,2]
[399668790,1766597431607,-300.0,0.00014211,2]
[399668791,1766597431617,-600.0,0.00014211,2]
[399668792,1766597431626,-300.0,0.00014211,2]
[399668793,1766597431636,-195.0,0.00014211,2]
[399668794,1766597431646,-1200.0,0.00014212,2]
[399668795,1766597431655,-300.0,0.00014212,2]
[399668796,1766597431665,-150.0,0.00014212,2]
[399668797,1766597431675,-500.0,0.00014213,2]
[399668798,1766597431684,-500.0,0.00014213,2]
[399668799,1766597431694,-500.0,0.00014213,2]
[399668800,1766597431704,-500.0,0.00014213,2]
[399668801,1766597431714,-500.0,0.00014213,2]
[399668802,1766597431724,-500.0,0.00014213,2]
[399668803,1766597431735,-500.0,0.00014213,2]
[399668804,1766597431745,-500.0,0.00014213,2]
[399668805,1766597431755,-500.0,0.00014213,2]
[399668806,1766597431764,-500.0,0.00014213,2]
[399668807,1766597431775,-500.0,0.00014213,2]
[399668808,1766597431785,-8282.55,0.00014213,2]
[399668809,1766597431795,-500.0,0.00014213,2]
[399668810,1766597431806,-500.0,0.00014213,2]
[399668811,1766597431815,-500.0,0.00014213,2]
[399668812,1766597431825,-519.59185884,0.00014234,2]
[399668813,1766597431834,-151.0,0.00014234,2]
[399668814,1766597431845,-151.0,0.00014234,2]
[399668815,1766597431854,-200.0,0.00014234,2]
[399668816,1766597431864,-151.0,0.00014234,2]
[399668817,1766597431874,-151.0,0.00014234,2]
[399668818,1766597431884,-151.0,0.00014234,2]
[399668819,1766597431893,-151.0,0.00014234,2]
[399668820,1766597431903,-151.0,0.00014234,2]
[399668821,1766597431912,-151.0,0.00014234,2]
[399668822,1766597431922,-151.0,0.00014234,2]
[399668823,1766597431933,-151.0,0.00014234,2]
[399668824,1766597431942,-151.0,0.00014234,2]
[399668825,1766597431952,-151.0,0.00014234,2]
[399668826,1766597431962,-151.0,0.00014234,2]
[399668827,1766597431972,-151.0,0.00014234,2]
[399668828,1766597431982,-151.0,0.00014234,2]
[399668829,1766597431992,-151.0,0.00014234,2]
[399668830,1766597432001,-151.0,0.00014234,2]
[399668831,1766597432011,-151.0,0.00014234,2]
[399668832,1766597432022,-151.0,0.00014234,2]
[399668833,1766597432032,-151.0,0.00014234,2]
[399668834,1766597432041,-200.0,0.00014234,2]
[399668835,1766597432051,-2575.9,0.00014241,2]
[399668836,1766597432061,-500.0,0.00014243,2]
[399668837,1766597432071,-500.0,0.00014243,2]
[399668838,1766597432081,-500.0,0.00014243,2]
[399668839,1766597432090,-500.0,0.00014243,2]
[399668840,1766597432100,-500.0,0.00014243,2]
[399668841,1766597432109,-500.0,0.00014243,2]
[399668842,1766597432119,-500.0,0.00014243,2]
[399668843,1766597432129,-486.58926638,0.00014243,2]
[399668844,1766597432139,-500.0,0.00014243,2]
[399668845,1766597432149,-500.0,0.00014243,2]
[399668846,1766597432159,-500.0,0.00014243,2]
[399668847,1766597432169,-500.0,0.00014243,2]
[399668848,1766597432178,-500.0,0.00014243,2]
[399668849,1766597432188,-500.0,0.00014243,2]
[399668850,1766597432198,-500.0,0.00014243,2]
[399668851,1766597432208,-500.0,0.00014243,2]
[399668852,1766597432219,-500.0,0.00014243,2]
[399668853,1766597432229,-500.0,0.00014243,2]
[399668854,1766597432239,-521.52385313,0.00014243,2]
[399668855,1766597432248,-500.0,0.00014243,2]
[399668856,1766597432258,-500.0,0.00014243,2]
[399668857,1766597432269,-500.0,0.00014243,2]
[399668858,1766597432279,-500.0,0.00014243,2]
[399668859,1766597432288,-500.0,0.00014243,2]
[399668860,1766597432298,-500.0,0.00014243,2]
[399668861,1766597432307,-500.0,0.00014243,2]
[399668862,1766597432317,-500.0,0.00014243,2]
[399668863,1766597432327,-500.0,0.00014243,2]
[399668864,1766597432336,-528.10208627,0.00014243,2]
[399668865,1766597432346,-1261.97,0.00014243,2]
[399668866,1766597432357,-398.68934422,0.00014243,2]
[399668867,1766597432366,-500.0,0.00014243,2]
[399668868,1766597432376,-500.0,0.00014243,2]
[399668869,1766597432386,-500.0,0.00014243,2]
[399668870,1766597432397,-500.0,0.00014243,2]
[399668871,1766597432407,-500.0,0.00014243,2]
[399668872,1766597432417,-500.0,0.00014243,2]
[399668873,1766597432427,-500.0,0.00014243,2]
[399668874,1766597432437,-500.0,0.00014243,2]
[399668875,1766597432446,-999.99,0.00014243,2]
[399668876,1766597432456,-9999.99,0.00014243,2]
[399668877,1766597432465,-1206.07,0.00014243,2]
[399668878,1766597432475,-150.99,0.00014243,2]
[399668879,1766597432484,-500.0,0.00014243,2]
[399668880,1766597432494,-999.0,0.0001427,3]
[399668881,1766597432503,-150.0,0.00014279,2]
[399668882,1766597432513,-150.0,0.00014279,2]
[399668883,1766597432523,-500.0,0.00014279,2]
[399668884,1766597432534,-500.0,0.00014279,2]
[399668885,1766597432543,-500.0,0.00014279,2]
[399668886,1766597432552,-500.0,0.00014279,2]
[399668887,1766597432562,-500.0,0.00014279,2]
[399668888,1766597432572,-150.0,0.00014279,2]
[399668889,1766597432582,-150.0,0.00014279,2]
[399668890,1766597432591,-500.0,0.00014279,2]
[399668891,1766597432602,-500.0,0.00014279,2]
[399668892,1766597432611,-150.0,0.00014306,2]
[399668893,1766597432620,-150.0,0.00014306,2]
[399668894,1766597432994,-622.96244063,0.00014306,2]
[399668895,1766597433051,-500.0,0.00014306,2]
[399668896,1766597433062,-500.0,0.00014306,2]
[399668897,1766597433073,-500.0,0.00014306,2]
[399668898,1766597433083,-500.0,0.00014306,2]
[399668899,1766597433093,-500.0,0.00014306,2]
[399668900,1766597433105,-500.0,0.00014306,2]
[399668901,1766597433115,-150.0,0.00014334,2]
[399668902,1766597433125,-500.0,0.00014334,2]
[399668903,1766597433135,-500.0,0.00014334,2]
[399668904,1766597433145,-500.0,0.00014334,2]
[399668905,1766597433156,-203.38212511,0.00014334,2]
[399668906,1766597433165,-500.0,0.00014334,2]
[399668907,1766597433175,-500.0,0.00014334,2]
[399668908,1766597433185,-150.0,0.00014361,2]
[399668909,1766597433195,-500.0,0.00014361,2]
[399668910,1766597433206,-500.0,0.00014361,2]
[399668911,1766597433216,-184.13451701,0.00014389,2]
[399668912,1766597433226,-500.0,0.00014389,2]
[399668913,1766597433236,-500.0,0.00014389,2]
[399668914,1766597433247,-582.0,0.00014416,2]
[399668915,1766597433256,-438.62652423,0.00014416,2]
[399668916,1766597433266,-500.0,0.00014517,2]
[399668917,1766597433277,-1261.97,0.00014517,2]
[399668918,1766597433287,-295.28,0.00014727,2]
[399668919,1766597433298,-201.4900217,0.00014791,2]
[399668920,1766597433308,-1261.97,0.00014791,2]
[399668921,1766597433319,-649.92521992,0.00014847,2]
[399668922,1766597433329,-1077.0,0.00014903,2]
[399668923,1766597433340,-150.0,0.00014962,2]
[399668924,1766597433350,-1261.97,0.00015065,2]
[399668925,1766597433359,-500.0,0.00015173,2]
[399668926,1766597433369,-500.0,0.00015173,2]
[399668927,1766597433380,-500.0,0.00015173,2]
[399668928,1766597433396,-500.0,0.00015173,2]
[399668929,1766597433408,-162.11626746,0.00015173,2]
[399668930,1766597433418,-500.0,0.00015173,2]
[399668931,1766597433429,-537.88170422,0.00015173,2]
[399668932,1766597433439,-500.0,0.00015173,2]
[399668933,1766597433449,-501.65480371,0.00015173,2]
[399668934,1766597433461,-500.0,0.00015173,2]
[399668935,1766597433472,-500.35332728,0.00015173,2]
[399668936,1766597433482,-500.0,0.00015173,2]
[399668937,1766597433493,-500.0,0.00015173,2]
[399668938,1766597433504,-254.14415415,0.00015173,2]
[399668939,1766597433514,-500.0,0.00015173,2]
[399668940,1766597433525,-151.0,0.00015183,2]
[399668941,1766597433535,-151.0,0.00015183,2]
[399668942,1766597433545,-154.62,0.00015183,2]
[399668943,1766597433556,-151.0,0.00015183,2]
[399668944,1766597433567,-151.0,0.00015183,2]
[399668945,1766597433578,-1511.0,0.00015254,2]
[399668946,1766597433589,-1377.0,0.00015285,2]
[399668947,1766597433599,-1517.64,0.000153,2]
[399668948,1766597433610,-255.0,0.00015335,2]
[399668949,1766597433621,-339.76,0.00015337,2]
[399668950,1766597433633,-1261.97,0.00015339,2]
[399668951,1766597433644,-163.8,0.00015383,2]
[399668952,1766597433654,-506.05021686,0.000154,2]
[399668953,1766597433665,-3933.70575324,0.0001546,2]
[399668954,1766597433676,-200.0,0.00015462,2]
[399668955,1766597433687,-207.4,0.00015462,2]
[399668956,1766597433697,-215.0738,0.00015462,2]
[399668957,1766597433707,-500.0,0.00015462,2]
[399668958,1766597433719,-721.12765535,0.00015462,2]
[399668959,1766597433731,-223.0315306,0.00015462,2]
[399668960,1766597433742,-322.78312333,0.00015462,2]
[399668961,1766597433759,-500.0,0.00015462,2]
[399668962,1766597433771,-151.0,0.00015462,2]
[399668963,1766597433781,-500.0,0.00015462,2]
[399668964,1766597433792,-500.0,0.00015462,2]
[399668965,1766597433802,-231.28369723,0.00015462,2]
[399668966,1766597433813,-500.0,0.00015462,2]
[399668967,1766597433824,-500.0,0.00015462,2]
[399668968,1766597433833,-239.84119403,0.00015462,2]
[399668969,1766597433844,-500.0,0.00015462,2]
[399668970,1766597433854,-500.0,0.00015462,2]
[399668971,1766597433865,-248.71531821,0.00015462,2]
[399668972,1766597433878,-500.0,0.00015462,2]
[399668973,1766597433889,-257.91778498,0.00015462,2]
[399668974,1766597433899,-500.0,0.00015462,2]
[399668975,1766597433909,-500.0,0.00015462,2]
[399668976,1766597433920,-267.46074303,0.00015462,2]
[399668977,1766597433931,-500.0,0.00015462,2]
[399668978,1766597433941,-500.0,0.00015462,2]
[399668979,1766597433951,-277.35679052,0.00015462,2]
[399668980,1766597433963,-500.0,0.00015462,2]
[399668981,1766597433973,-500.0,0.00015462,2]
[399668982,1766597433984,-500.0,0.00015462,2]
[399668983,1766597433994,-322.6107,0.00015462,2]
[399668984,1766597434004,-500.0,0.00015462,2]
[399668985,1766597434016,-414.81438464,0.00015462,2]
[399668986,1766597434027,-500.0,0.00015462,2]
[399668987,1766597434038,-578.20924308,0.00015462,2]
[399668988,1766597434049,-500.0,0.00015462,2]
[399668989,1766597434059,-620.0,0.00015462,2]
[399668990,1766597434069,-500.0,0.00015462,2]
[399668991,1766597434080,-500.0,0.00015462,2]
[399668992,1766597434090,-250.0,0.00015462,2]
[399668993,1766597434100,-151.0,0.00015462,2]
[399668994,1766597434117,-500.0,0.00015462,2]
[399668995,1766597434128,-500.0,0.00015462,2]
[399668996,1766597434139,-250.0,0.00015462,2]
[399668997,1766597434150,-500.0,0.00015462,2]
[399668998,1766597434160,-208.5647437,0.00015462,2]
[399668999,1766597434170,-500.0,0.00015462,2]
[399669000,1766597434181,-500.0,0.00015462,2]
[399669001,1766597434192,-500.0,0.00015462,2]
[399669002,1766597434203,-500.0,0.00015462,2]
[399669003,1766597434213,-500.0,0.00015462,2]
[399669004,1766597434224,-500.0,0.00015462,2]
[399669005,1766597434234,-500.0,0.00015462,2]
[399669006,1766597434245,-500.0,0.00015462,2]
[399669007,1766597434255,-500.0,0.00015462,2]
[399669008,1766597434266,-162.42297638,0.00015462,2]
[399669009,1766597434278,-500.0,0.00015462,2]
[399669010,1766597434289,-500.0,0.00015462,2]
[399669011,1766597434299,-153.19657101,0.00015462,2]
[399669012,1766597434310,-500.0,0.00015462,2]
[399669013,1766597434321,-250.0,0.00015462,2]
[399669014,1766597434332,-250.0,0.00015462,2]
[399669015,1766597434342,-250.0,0.00015462,2]
[399669016,1766597434352,-250.0,0.00015462,2]
[399669017,1766597434363,-250.0,0.00015462,2]
[399669018,1766597434373,-250.0,0.00015462,2]
[399669019,1766597434383,-250.0,0.00015462,2]
[399669020,1766597434394,-250.0,0.00015462,2]
[399669021,1766597434405,-250.0,0.00015462,2]
[399669022,1766597434415,-250.0,0.00015462,2]
[399669023,1766597434426,-250.0,0.00015462,2]
[399669024,1766597434437,-250.0,0.00015462,2]
[399669025,1766597434447,-543.0,0.00015462,2]
[399669026,1766597434458,-250.0,0.00015462,2]
[399669027,1766597434473,-209.40437684,0.00015462,2]
[399669028,1766597434484,-250.0,0.00015462,2]
[399669029,1766597434494,-250.0,0.00015462,2]
[399669030,1766597434505,-250.0,0.00015462,2]
[399669031,1766597434515,-250.0,0.00015462,2]
[399669032,1766597434526,-250.0,0.00015462,2]
[399669033,1766597434537,-250.0,0.00015462,2]
[399669034,1766597434547,-250.0,0.00015462,2]
[399669035,1766597434558,-250.0,0.00015462,2]
[399669036,1766597434574,-250.0,0.00015462,2]
[399669037,1766597434584,-250.0,0.00015462,2]
[399669038,1766597434595,-504.50965357,0.00015462,2]
[399669039,1766597434606,-250.0,0.00015462,2]
[399669040,1766597434616,-250.0,0.00015462,2]
[399669041,1766597434627,-250.0,0.00015462,2]
[399669042,1766597434637,-250.0,0.00015462,2]